bitfinex-derivatives/quotes_ETHF0:USTF0_20240925
["timestamp","ask_amount","ask_price","bid_price","bid_amount"]
[1727283103517,0.81862399,2604.4,2604.3,0.38396]
[1727283103715,0.44772399,2604.4,2604.3,0.38396]
[1727283103913,0.06378399,2604.4,2604.3,0.38396]
[1727283104216,0.38394,2604.4,2604.3,0.38396]
[1727283104415,0.44772399,2604.4,2604.3,0.38396]
[1727283104616,1.94951315,2604.4,2604.3,0.38396]
[1727283104909,0.44772399,2604.4,2604.3,0.38396]
[1727283105116,0.38394,2604.4,2604.3,0.38396]
[1727283105317,1.88572248,2604.4,2604.3,0.38396]
[1727283105521,0.38394,2604.4,2604.3,0.38396]
[1727283105821,2.38848745,2604.5,2604.4,0.38394]
[1727283106922,2.00455745,2604.6,2604.5,0.38393]
[1727283107807,2.38847745,2604.6,2604.5,0.38393]
[1727283108315,1.88527165,2604.6,2604.5,3.07393]
[1727283108521,0.38393,2604.5,2604.4,0.76834]
[1727283108716,0.38394,2604.4,2604.2,4.3985]
[1727283109022,0.38394,2604.4,2604.3,0.38396]
[1727283109615,0.38394,2604.5,2604.2,4.3985]
[1727283109820,1.88528165,2604.6,2604.5,0.38393]
[1727283112213,0.38391,2604.6,2604.5,0.38393]
[1727283112914,0.38391,2604.6,2604.4,0.38393]
[1727283112915,0.38394,2604.5,2604.4,0.38393]
[1727283116414,0.3746,2604.7,2604.3,2.69]
[1727283116727,1.71826,2604.7,2604.6,2.69]
[1727283117910,1.71826,2604.7,2604.6,3.07391]
[1727283117911,0.75851,2604.7,2604.6,3.07391]
[1727283118119,0.38391,2604.7,2604.6,3.07391]
[1727283119428,0.38391,2604.7,2604.6,2.69]
[1727283119625,0.38391,2604.6,2604.5,0.38392]
[1727283119924,0.38391,2604.7,2604.6,0.38391]
[1727283120517,1.88524165,2604.9,2604.8,0.38388]
[1727283120719,1.50136165,2604.9,2604.8,0.38388]
[1727283120925,1.88522165,2605.0,2604.9,0.38387]
[1727283121117,1.88522165,2605.0,2604.9,3.07387]
[1727283121318,1.50136165,2605.2,2604.9,16.69667]
[1727283121519,1.35733,2605.3,2605.2,0.38382]
[1727283121520,2.28298165,2605.3,2605.2,0.38382]
[1727283121722,1.88518165,2605.3,2605.2,0.38382]
[1727283122019,1.88518165,2605.3,2605.2,1.54592]
[1727283122422,1.88518165,2605.3,2605.0,0.95964]
[1727283122423,1.34344,2605.1,2605.0,2.69]
[1727283122621,0.38388,2604.8,2604.7,0.3756]
[1727283122821,1.34359,2604.8,2604.7,0.3756]
[1727283123026,2.46130487,2604.9,2604.5,0.38392]
[1727283123027,0.3839,2604.7,2604.5,0.38392]
[1727283123225,1.18631,2604.7,2604.6,0.38391]
[1727283123529,0.38392,2604.6,2604.5,0.38392]
[1727283123730,0.8024,2604.7,2604.5,0.38392]
[1727283123731,1.18631,2604.7,2604.5,0.38392]
[1727283123923,1.18631,2604.7,2604.6,0.38391]
[1727283124524,0.38391,2604.6,2604.5,0.38392]
[1727283124723,2.68793487,2604.7,2604.6,0.38391]
[1727283124925,0.3978,2604.7,2604.6,0.38391]
[1727283125227,1.88552487,2604.7,2604.6,0.38391]
[1727283125416,0.3839,2604.7,2604.6,0.75601]
[1727283125616,1.50162487,2604.7,2604.6,0.75601]
[1727283126319,1.50162487,2604.7,2604.6,8.7628]
[1727283126618,2.00584158,2605.1,2605.0,0.95964]
[1727283126827,2.50622636,2605.2,2605.1,0.38384]
[1727283126828,2.00584158,2605.2,2605.1,0.38384]
[1727283127023,2.50622636,2605.3,2605.2,0.38382]
[1727283127024,2.00584158,2605.3,2605.2,0.38382]
[1727283127215,1.87348212,2605.6,2605.2,4.04535]
[1727283127417,0.75306,2605.6,2605.5,2.69]
[1727283127623,0.38379,2605.4,2605.3,5.8978]
[1727283127918,0.38379,2605.5,2605.3,3.59161]
[1727283128230,0.3693,2605.6,2605.5,0.38378]
[1727283128427,1.88793212,2605.7,2605.5,2.69]
[1727283128723,1.50418212,2605.7,2605.6,0.38376]
[1727283128926,0.3766,2605.8,2605.7,0.38375]
[1727283129129,0.3766,2605.8,2605.7,3.07375]
[1727283129723,0.3766,2605.8,2605.7,3.46805]
[1727283129927,0.38375,2605.7,2605.6,0.76196]
[1727283130123,0.77165,2605.7,2605.6,0.3782]
[1727283130321,0.3879,2605.7,2605.6,0.76196]
[1727283130523,0.77165,2605.7,2605.6,0.3782]
[1727283131025,0.38376,2605.6,2605.5,2.69]
[1727283131229,0.76876,2605.6,2605.5,2.69]
[1727283131830,0.76876,2605.6,2605.5,3.07378]
[1727283132025,0.76876,2605.6,2605.5,2.69]
[1727283132333,0.385,2605.6,2605.5,3.07378]
[1727283132523,0.385,2605.6,2605.5,2.69]
[1727283132723,0.76876,2605.6,2605.5,2.69]
[1727283133320,1.72818,2605.6,2605.5,2.69]
[1727283133529,0.76876,2605.6,2605.5,2.69]
[1727283134122,2.27294212,2605.6,2605.5,2.69]
[1727283136523,2.27294212,2605.6,2605.5,3.308]
[1727283136723,2.27294212,2605.6,2605.5,0.618]
[1727283137132,9.79675626,2605.6,2605.5,0.618]
[1727283137428,20.99298731,2605.6,2605.5,0.618]
[1727283137629,12.30298731,2605.6,2605.5,0.618]
[1727283137834,9.79676095,2605.6,2605.5,0.618]
[1727283138034,1.91892,2605.5,2604.6,2.69]
[1727283138333,1.91892,2605.5,2604.5,0.3737]
[1727283138334,0.38391,2604.6,2604.5,0.3737]
[1727283138633,0.3839,2604.7,2604.6,0.38391]
[1727283138821,1.88827142,2604.8,2604.5,3.0637]
[1727283139023,0.38389,2604.8,2604.7,2.69]
[1727283139227,5.09607142,2604.8,2604.7,2.69]
[1727283139727,5.09607142,2604.8,2604.7,3.0739]
[1727283139936,5.09607142,2604.8,2604.7,2.69]
[1727283140528,4.71218142,2604.8,2604.5,3.0637]
[1727283140748,0.38393,2604.5,2604.4,0.3888]
[1727283141037,0.95979,2604.6,2604.3,2.69]
[1727283141334,0.77844,2604.4,2604.3,2.69]
[1727283141539,0.38396,2604.3,2604.2,0.3979]
[1727283141728,0.3931,2604.3,2604.2,0.3979]
[1727283141933,0.77706,2604.3,2604.2,0.3979]
[1727283142335,1.89888142,2604.4,2604.2,0.78187]
[1727283142535,3.98624,2604.4,2604.3,2.69]
[1727283142725,3.98624,2604.4,2604.2,0.3979]
[1727283142726,0.38397,2604.3,2604.2,2.69]
[1727283142925,1.88893172,2604.3,2604.2,2.69]
[1727283143241,1.88893172,2604.3,2603.9,0.3813]
[1727283143242,0.384,2604.0,2603.9,3.0713]
[1727283143441,0.38399,2604.1,2603.9,3.0713]
[1727283143742,0.38399,2604.1,2603.9,3.45531]
[1727283144142,1.50505473,2604.2,2603.9,3.0713]
[1727283144331,0.384,2604.0,2603.9,3.0713]
[1727283144737,1.88905473,2604.0,2603.9,3.0713]
[1727283145040,1.50505473,2604.0,2603.9,3.45532]
[1727283145433,1.50505473,2604.2,2603.9,3.0713]
[1727283145745,1.88896473,2604.6,2604.4,0.38394]
[1727283145934,1.50505473,2604.6,2604.5,3.46853]
[1727283146133,1.50505473,2604.6,2604.5,3.0846]
[1727283146446,0.38391,2604.6,2604.5,3.0846]
[1727283147237,1.88834823,2604.6,2604.5,3.0846]
[1727283148838,1.50443823,2604.6,2604.5,3.46853]
[1727283149034,1.88834823,2604.6,2604.5,3.0846]
[1727283149240,0.38391,2604.6,2604.5,3.0846]
[1727283149439,0.38391,2604.6,2604.5,3.46853]
[1727283149644,0.38391,2604.6,2604.5,3.0846]
[1727283150250,0.38391,2604.6,2604.5,3.46853]
[1727283150741,3.5917,2604.7,2604.6,0.38391]
[1727283150948,3.5917,2604.7,2604.5,3.84542]
[1727283151143,3.5917,2604.7,2604.6,0.38391]
[1727283152151,3.2078,2604.7,2604.6,0.38391]
[1727283152452,3.59171,2604.7,2604.6,0.38391]
[1727283154049,0.38391,2604.6,2604.5,3.4615]
[1727283154243,1.3437,2604.6,2604.5,0.7715]
[1727283154554,1.34375,2604.5,2604.4,0.3928]
[1727283154745,0.38397,2604.2,2604.1,0.766]
[1727283155451,0.77507,2604.3,2604.1,3.83997]
[1727283155655,0.77507,2604.3,2604.2,0.38397]
[1727283155656,0.3911,2604.3,2604.2,0.38397]
[1727283155849,0.38397,2604.2,2604.1,3.456]
[1727283156050,0.38397,2604.2,2604.1,3.83999]
[1727283156551,0.38399,2604.1,2604.0,0.7631]
[1727283157558,0.38399,2604.1,2604.0,0.3791]
[1727283157757,0.38402,2603.9,2603.8,1.13602]
[1727283158257,0.38401,2604.0,2603.9,0.38402]
[1727283158440,1.89553823,2604.3,2603.9,3.07402]
[1727283158646,0.77506,2604.3,2604.2,2.69]
[1727283159655,0.77506,2604.3,2604.2,3.44197]
[1727283159953,0.77506,2604.3,2604.2,3.058]
[1727283161357,0.3911,2604.3,2604.2,3.44197]
[1727283161754,0.38394,2604.4,2604.3,0.38396]
[1727283162054,0.38394,2604.4,2604.3,0.77906]
[1727283162354,0.38394,2604.4,2604.3,1.15736]
[1727283162748,0.38394,2604.4,2604.3,0.7734]
[1727283163265,0.38394,2604.4,2604.3,1.15736]
[1727283166552,0.38394,2604.4,2604.3,0.7734]
[1727283166953,0.38394,2604.4,2604.3,0.3783]
[1727283167549,0.38396,2604.3,2604.2,0.75197]
[1727283168353,0.38396,2604.3,2604.2,0.368]
[1727283168751,1.3439,2604.2,2604.1,0.3721]
[1727283168951,1.3439,2604.2,2603.9,1.14131]
[1727283168952,0.384,2604.0,2603.9,1.14131]
[1727283169149,0.384,2604.0,2603.9,0.7573]
[1727283170057,0.384,2604.0,2603.9,1.14132]
[1727283170649,4.54494,2604.2,2603.9,4.5973]
[1727283170650,3.585,2604.2,2603.9,4.5973]
[1727283170857,3.585,2604.2,2604.1,0.38399]
[1727283171161,0.38399,2604.1,2604.0,0.384]
[1727283171354,0.76118,2604.2,2604.1,0.38399]
[1727283171759,0.38399,2604.1,2604.0,0.38399]
[1727283174062,3.2078,2604.6,2604.5,0.38393]
[1727283174965,3.59171,2604.6,2604.5,0.38393]
[1727283175260,3.2078,2604.6,2604.5,0.38393]
[1727283175857,3.59171,2604.6,2604.5,0.38393]
[1727283176169,0.95982,2604.5,2604.1,0.38398]
[1727283176358,0.38397,2604.2,2604.1,0.3933]
[1727283177154,0.384,2604.1,2603.9,0.38401]
[1727283177357,0.38399,2604.1,2603.9,0.384]
[1727283179254,4.1677,2604.3,2603.9,0.384]
[1727283179461,0.38399,2604.1,2603.9,0.384]
[1727283180666,0.38398,2604.2,2604.0,0.384]
[1727283180864,0.9599,2604.3,2604.1,0.38398]
[1727283180865,0.38396,2604.3,2604.1,0.38398]
[1727283181063,0.76605,2604.4,2604.2,0.38396]
[1727283181258,0.38396,2604.3,2604.2,0.38396]
[1727283181465,0.76606,2604.4,2604.2,0.38396]
[1727283181755,0.38397,2604.2,2604.1,0.75538]
[1727283181957,0.38397,2604.2,2604.1,0.3714]
[1727283184867,1.88840823,2604.2,2604.1,0.3714]
[1727283185571,1.88840823,2604.2,2604.1,0.75539]
[1727283185757,0.38397,2604.2,2604.1,0.75539]
[1727283186162,1.50443823,2604.3,2604.2,0.38397]
[1727283186163,1.88839823,2604.3,2604.2,0.38397]
[1727283186362,1.88839823,2604.3,2604.2,0.75957]
[1727283186659,1.50443823,2604.3,2604.2,0.75957]
[1727283186856,1.50443823,2604.3,2604.2,0.3756]
[1727283186857,1.88839823,2604.3,2604.2,0.3756]
[1727283187272,0.38396,2604.3,2604.2,0.3756]
[1727283187471,2.3897919,2604.4,2604.2,0.3756]
[1727283187667,2.3897919,2604.4,2604.2,0.75956]
[1727283187668,1.89400295,2604.3,2604.2,0.75956]
[1727283187862,1.89400375,2604.3,2604.2,0.75956]
[1727283188167,1.51004375,2604.3,2604.2,0.75956]
[1727283188763,1.89400375,2604.3,2604.2,0.75956]
[1727283189165,1.89400375,2604.3,2604.2,0.75957]
[1727283189566,1.89400375,2604.3,2604.2,0.3756]
[1727283189772,1.89405206,2604.3,2604.2,0.75957]
[1727283193071,0.38396,2604.3,2604.2,0.75957]
[1727283193293,1.51025075,2604.3,2604.2,0.75957]
[1727283193578,1.51025075,2604.3,2604.2,8.2495]
[1727283193779,0.38394,2604.4,2604.2,9.67838585]
[1727283193962,0.38394,2604.4,2604.3,1.37990978]
[1727283194164,0.38397,2604.2,2604.1,1.37630978]
[1727283194468,0.384,2604.0,2603.9,1.37360978]
[1727283194665,2.39804631,2604.0,2603.9,0.3687]
[1727283194871,0.384,2604.0,2603.9,0.3687]
[1727283195468,0.7821,2604.0,2603.9,0.3687]
[1727283195671,0.3981,2604.0,2603.9,0.75272]
[1727283195870,0.7821,2604.0,2603.9,0.3687]
[1727283196672,2.79606647,2604.0,2603.9,0.3687]
[1727283196881,2.79607246,2604.0,2603.9,0.3687]
[1727283197181,2.79609601,2604.0,2603.9,0.3687]
[1727283197476,0.7821,2604.0,2603.9,0.3687]
[1727283197875,2.4121912,2604.0,2603.9,0.75272]
[1727283198174,2.0140912,2604.0,2603.9,0.75272]
[1727283201678,1.51092145,2604.0,2603.9,1.75762978]
[1727283203283,1.51092145,2604.2,2604.1,0.38399]
[1727283203467,1.51092145,2604.3,2604.2,1.3439]
[1727283203672,2.0140912,2604.4,2604.2,1.3439]
[1727283203673,2.0140912,2604.4,2604.3,0.38396]
[1727283204078,2.3980312,2604.4,2604.3,0.38396]
[1727283204275,2.3980412,2604.4,2604.3,0.38396]
[1727283204476,2.3980412,2604.4,2604.2,0.4063]
[1727283204680,2.0140912,2604.4,2604.3,0.38396]
[1727283208486,2.3980312,2604.4,2604.2,0.4063]
[1727283208891,2.0140912,2604.4,2604.3,0.38396]
[1727283209775,0.38394,2604.5,2604.3,0.38396]
[1727283210188,4.38041498,2604.6,2604.5,0.38393]
[1727283210189,0.4054,2604.6,2604.5,0.38393]
[1727283210385,0.78931,2604.6,2604.5,0.38393]
[1727283211283,0.4054,2604.6,2604.5,0.38393]
[1727283211486,2.92261825,2604.6,2604.5,3.07393]
[1727283211690,2.51721825,2604.6,2604.5,3.07393]
[1727283211881,6.22302498,2604.9,2604.6,0.95979]
[1727283211882,2.01350481,2604.7,2604.6,0.95979]
[1727283212184,2.01350481,2604.8,2604.7,0.3839]
[1727283212391,2.01350481,2604.8,2604.7,0.7498]
[1727283214486,2.77487481,2604.9,2604.8,0.38388]
[1727283215800,2.39100481,2604.9,2604.8,0.38388]
[1727283216890,0.3775,2604.9,2604.8,0.38388]
[1727283217093,1.50807665,2605.2,2605.0,0.95964]
[1727283217392,0.3916,2605.4,2605.1,2.69]
[1727283217584,0.38381,2605.3,2605.1,3.07383]
[1727283217787,0.7754,2605.4,2605.2,0.38382]
[1727283218186,0.38381,2605.3,2605.1,3.07383]
[1727283218489,0.38381,2605.3,2605.2,0.38382]
[1727283219387,0.7754,2605.4,2605.2,0.38382]
[1727283220095,0.7754,2605.4,2605.0,2.69]
[1727283220297,0.3916,2605.4,2605.0,2.69]
[1727283220887,0.3916,2605.4,2605.2,0.38381]
[1727283221087,0.7754,2605.4,2605.2,0.38381]
[1727283221690,0.3916,2605.4,2605.2,0.38381]
[1727283221890,0.77539,2605.4,2605.2,0.38381]
[1727283222484,0.3916,2605.4,2605.3,0.38381]
[1727283222798,0.3688,2605.5,2605.2,0.77251]
[1727283222992,0.38379,2605.4,2605.2,0.77251]
[1727283223391,0.38382,2605.2,2605.1,3.5791]
[1727283223588,6.85737,2605.2,2604.6,4.59628824]
[1727283223786,0.38387,2604.9,2604.5,3.461]
[1727283224006,0.38389,2604.8,2604.6,3.5917]
[1727283224300,0.38388,2604.9,2604.7,0.3839]
[1727283224504,2.12411,2605.1,2604.6,3.2078]
[1727283224797,0.38388,2604.9,2604.7,0.3839]
[1727283225298,0.38388,2604.8,2604.6,0.3839]
[1727283225502,0.38388,2604.8,2604.5,0.3865]
[1727283225503,0.95972,2604.8,2604.5,0.3865]
[1727283225699,0.95972,2604.8,2604.3,0.38396]
[1727283225700,0.38393,2604.5,2604.3,0.38396]
[1727283225998,0.38393,2604.5,2604.2,0.76846]
[1727283226189,0.3974,2604.4,2604.2,0.76846]
[1727283226392,0.3974,2604.4,2604.3,0.38396]
[1727283226596,0.77181,2604.7,2604.4,0.38394]
[1727283226899,0.38392,2604.6,2604.3,2.69]
[1727283227097,0.7853,2604.7,2604.4,0.38393]
[1727283227407,0.38392,2604.6,2604.3,3.07395]
[1727283228698,0.38393,2604.5,2604.3,3.07395]
[1727283230200,0.38392,2604.6,2604.4,0.38394]
[1727283231202,1.1692,2604.7,2604.5,3.07393]
[1727283231398,0.3879,2604.7,2604.5,2.69]
[1727283231706,0.3879,2604.7,2604.6,1.16601]
[1727283232291,0.7718,2604.7,2604.6,0.7821]
[1727283232496,2.27987665,2604.7,2604.6,0.7821]
[1727283232896,0.7718,2604.7,2604.6,0.7821]
[1727283233101,0.7718,2604.7,2604.6,1.16601]
[1727283233102,0.3879,2604.7,2604.6,1.16601]
[1727283234106,1.50807665,2604.9,2604.8,0.38388]
[1727283234298,1.50807665,2604.9,2604.8,3.07388]
[1727283234895,1.90347665,2605.0,2604.9,0.38387]
[1727283235100,0.77926,2605.0,2604.8,3.07387]
[1727283235305,0.3954,2605.0,2604.9,0.38387]
[1727283236503,2.67009665,2605.3,2605.1,0.38384]
[1727283237001,2.67009665,2605.3,2605.0,6.67094]
[1727283237002,0.38382,2605.2,2605.0,6.67094]
[1727283237198,0.38382,2605.2,2605.0,3.46314]
[1727283237507,2.28627665,2605.3,2605.2,0.38382]
[1727283237697,1.50807665,2605.4,2605.2,0.38381]
[1727283237903,1.50807665,2605.4,2605.3,0.3961]
[1727283238504,1.89185665,2605.5,2605.3,0.3961]
[1727283238905,1.50807665,2605.4,2605.3,0.3961]
[1727283239099,1.89186665,2605.4,2605.3,0.3961]
[1727283239502,0.38381,2605.3,2605.1,0.75203]
[1727283239703,0.3705,2605.3,2605.1,0.75203]
[1727283240408,0.3705,2605.3,2605.2,0.38382]
[1727283240709,0.3705,2605.3,2605.2,3.07382]
[1727283241506,0.3705,2605.3,2605.2,2.69]
[1727283241716,0.75431,2605.3,2605.2,2.69]
[1727283242097,0.38382,2605.2,2605.1,0.3682]
[1727283242403,0.3705,2605.3,2605.1,0.75204]
[1727283243007,0.75431,2605.3,2605.1,0.75204]
[1727283243609,0.3838,2605.4,2605.3,0.38381]
[1727283243811,0.38379,2605.5,2605.2,2.69]
[1727283244015,0.3981,2605.6,2605.5,0.38378]
[1727283244309,0.78187,2605.6,2605.4,2.69]
[1727283244511,0.78187,2605.6,2605.5,0.7701]
[1727283246909,2.79537481,2605.6,2605.5,0.7701]
[1727283247411,2.78799332,2605.6,2605.5,0.4012]
[1727283247612,0.78187,2605.6,2605.5,0.4012]
[1727283248911,2.78820376,2605.6,2605.5,0.4012]
[1727283249412,0.78187,2605.6,2605.5,0.4012]
[1727283249604,2.78823416,2605.6,2605.5,0.4012]
[1727283249811,2.00636416,2605.6,2605.5,0.78498]
[1727283250208,3.27075825,2605.8,2605.6,0.38376]
[1727283250209,2.00636416,2605.7,2605.6,0.38376]
[1727283250412,2.00636416,2605.7,2605.6,3.47136]
[1727283252016,3.27075825,2605.8,2605.7,0.38375]
[1727283252312,0.75354,2605.8,2605.6,3.47135]
[1727283252517,2.00651573,2605.7,2605.6,3.47135]
[1727283253820,2.00651573,2605.8,2605.7,0.38375]
[1727283254018,2.00636902,2605.9,2605.7,2.69]
[1727283254207,2.00636902,2605.9,2605.8,0.38374]
[1727283254817,2.39008902,2605.9,2605.7,3.07374]
[1727283255012,4.54164,2606.1,2605.7,3.07374]
[1727283255220,0.38373,2605.9,2605.7,0.38374]
[1727283255920,0.38373,2605.9,2605.8,0.38374]
[1727283256423,0.38373,2605.9,2605.7,0.38374]
[1727283256622,0.38373,2605.9,2605.8,0.38374]
[1727283256816,0.38373,2605.9,2605.6,3.6054]
[1727283256817,0.38373,2605.9,2605.7,0.38374]
[1727283257322,0.38373,2605.9,2605.6,3.6054]
[1727283257323,0.38374,2605.8,2605.6,0.78135]
[1727283257509,0.9593,2606.0,2605.6,0.3976]
[1727283257709,0.95935,2605.8,2605.5,3.0912]
[1727283257911,0.95935,2605.8,2605.3,3.2078]
[1727283257912,0.95942,2605.6,2605.3,3.5754]
[1727283258116,0.38379,2605.5,2605.3,3.9592]
[1727283258717,0.38379,2605.5,2605.4,0.38379]
[1727283259118,0.38378,2605.6,2605.4,0.38379]
[1727283259420,0.38382,2605.2,2605.0,3.07384]
[1727283259620,0.38381,2605.3,2605.0,3.46244]
[1727283260015,0.4037,2605.2,2605.0,3.46244]
[1727283260423,0.78752,2605.2,2605.0,3.46244]
[1727283260623,4.2421,2605.2,2604.9,3.2078]
[1727283260836,0.38385,2605.0,2604.9,3.2078]
[1727283261619,0.78435,2605.1,2604.9,3.2078]
[1727283261814,0.4037,2605.2,2605.0,2.69]
[1727283262114,1.50472894,2605.1,2605.0,2.69]
[1727283262316,1.50472894,2605.1,2605.0,3.07385]
[1727283264522,2.39017902,2605.3,2605.1,0.38384]
[1727283264716,2.39017902,2605.3,2605.2,0.4014]
[1727283268028,0.38384,2605.2,2605.0,3.07385]
[1727283268226,1.50549611,2605.1,2604.9,3.59166]
[1727283268418,1.88934611,2605.0,2604.9,3.2078]
[1727283268823,4.16744,2605.0,2604.8,0.3752]
[1727283269026,4.16744,2605.0,2604.5,0.3843]
[1727283269027,0.38391,2604.6,2604.5,0.3843]
[1727283269228,0.38391,2604.6,2604.0,3.2078]
[1727283269229,0.38395,2604.4,2604.2,0.38396]
[1727283269426,1.50575818,2604.6,2604.3,0.38395]
[1727283269427,2.26688818,2604.5,2604.3,0.38395]
[1727283269626,0.38394,2604.4,2604.2,3.07396]
[1727283269829,2.26689818,2604.5,2604.3,0.38396]
[1727283270029,0.76114,2604.5,2604.3,0.38396]
[1727283271328,0.3772,2604.5,2604.2,2.69]
[1727283271930,0.3772,2604.5,2604.3,0.38395]
[1727283271931,0.76113,2604.5,2604.3,0.38395]
[1727283272736,0.38392,2604.6,2604.4,3.07394]
[1727283272939,0.38392,2604.6,2604.5,0.4032]
[1727283273430,0.3839,2604.7,2604.5,0.78712]
[1727283273630,0.38,2604.8,2604.6,2.69]
[1727283273846,0.3839,2604.7,2604.6,2.69]
[1727283274031,0.38391,2604.6,2604.5,0.4032]
[1727283274236,0.38391,2604.7,2604.5,0.78713]
[1727283274539,0.38391,2604.6,2604.5,0.78713]
[1727283274723,0.38391,2604.7,2604.5,0.78713]
[1727283274928,0.38391,2604.7,2604.5,0.78712]
[1727283275234,0.38,2604.8,2604.5,0.4032]
[1727283275629,0.3839,2604.7,2604.5,0.78712]
[1727283275842,0.76389,2604.8,2604.6,0.38391]
[1727283276137,0.3839,2604.7,2604.6,0.38391]
[1727283276337,0.76389,2604.8,2604.6,0.38391]
[1727283276535,0.76389,2604.8,2604.6,0.78731]
[1727283276928,0.38,2604.8,2604.6,0.4034]
[1727283277431,0.38,2604.8,2604.6,3.0934]
[1727283277631,0.95961,2605.1,2604.6,6.3012]
[1727283277824,1.50575818,2605.2,2604.6,6.3012]
[1727283277825,1.71455,2605.0,2604.6,3.0934]
[1727283278028,0.38389,2604.8,2604.6,3.4773]
[1727283278228,1.71455,2605.0,2604.7,0.3839]
[1727283278429,0.38388,2604.8,2604.6,3.4773]
[1727283279831,4.92235,2605.0,2604.7,0.3839]
[1727283280034,1.71455,2605.0,2604.7,0.3839]
[1727283280238,4.92235,2605.0,2604.7,0.3839]
[1727283280438,0.38388,2604.8,2604.6,3.47731]
[1727283280849,4.92235,2605.0,2604.6,0.4034]
[1727283280850,0.3839,2604.7,2604.6,0.4034]
[1727283281334,0.38389,2604.8,2604.6,0.78731]
[1727283281540,0.3839,2604.7,2604.6,0.4034]
[1727283281842,0.3839,2604.8,2604.6,0.78731]
[1727283282036,0.95968,2604.9,2604.6,0.4034]
[1727283282037,0.3839,2604.7,2604.6,0.4034]
[1727283283242,0.38389,2604.8,2604.6,0.7873]
[1727283283434,0.38389,2604.8,2604.6,3.4773]
[1727283283842,0.38388,2604.9,2604.7,0.3839]
[1727283284333,0.38388,2604.9,2604.8,0.4017]
[1727283285642,1.34356,2604.9,2604.8,0.4017]
[1727283285840,1.34356,2604.9,2604.6,3.0934]
[1727283285841,0.3839,2604.7,2604.6,0.4034]
[1727283286443,0.38389,2604.8,2604.6,0.7873]
[1727283286635,0.3839,2604.7,2604.6,0.4034]
[1727283289839,0.38391,2604.6,2604.5,0.4032]
[1727283290051,0.76871,2604.6,2604.5,0.78713]
[1727283290244,0.76871,2604.6,2604.5,0.4032]
[1727283290746,0.38391,2604.7,2604.5,0.78713]
[1727283291141,0.38391,2604.6,2604.5,0.78713]
[1727283291937,4.54246,2605.0,2604.6,0.38391]
[1727283292140,4.54246,2605.0,2604.8,2.69]
[1727283292141,0.38387,2604.9,2604.8,2.69]
[1727283292843,0.38387,2604.9,2604.8,3.0693]
[1727283294147,0.38386,2605.0,2604.8,3.45318]
[1727283294338,0.38386,2605.0,2604.9,0.3678]
[1727283294539,0.78495,2605.1,2604.9,1.15497]
[1727283295540,0.38385,2605.0,2604.9,1.15497]
[1727283296045,3.2078,2605.0,2604.6,2.69]
[1727283296242,0.38389,2604.8,2604.6,0.78741]
[1727283296639,0.3839,2604.7,2604.6,0.4035]
[1727283296835,0.769,2604.7,2604.6,0.4035]
[1727283297038,1.72875,2604.7,2604.6,0.4035]
[1727283297648,0.38393,2604.6,2604.4,1.16184]
[1727283297850,0.38393,2604.6,2604.4,1.54604]
[1727283298248,0.38393,2604.5,2604.4,1.1621]
[1727283298552,0.95992,2604.3,2603.9,1.40227824]
[1727283298850,0.38399,2604.1,2603.9,1.1579]
[1727283299244,0.38399,2604.1,2603.9,3.8479]
[1727283300050,0.38399,2604.1,2603.9,4.23191]
[1727283300357,0.76688,2604.2,2603.9,3.8479]
[1727283300547,0.38399,2604.1,2603.9,4.23192]
[1727283300857,0.38399,2604.1,2603.9,3.8479]
[1727283301151,0.96008,2603.8,2603.3,1.00457824]
[1727283301451,0.38407,2603.6,2603.3,0.7781]
[1727283301643,0.7818,2603.7,2603.5,0.38407]
[1727283301847,0.3804,2603.7,2603.5,3.07407]
[1727283302447,2.29116818,2604.0,2603.6,0.38405]
[1727283302648,2.29116818,2604.0,2603.7,3.0935]
[1727283302845,2.29116818,2604.0,2603.7,0.4035]
[1727283302846,5.11495818,2604.0,2603.7,0.4035]
[1727283303046,5.11495818,2604.0,2603.6,2.69]
[1727283303047,0.38403,2603.8,2603.6,2.69]
[1727283303351,0.38407,2603.6,2603.4,3.0935]
[1727283303550,0.96008,2603.8,2603.4,0.4035]
[1727283303551,0.38407,2603.5,2603.4,0.4035]
[1727283303755,0.38407,2603.6,2603.4,0.4035]
[1727283303951,2.86653818,2603.8,2603.4,0.4035]
[1727283303952,0.38407,2603.5,2603.4,0.4035]
[1727283304158,0.38407,2603.5,2603.3,0.7781]
[1727283304361,4.16792,2603.7,2603.3,0.7781]
[1727283304651,1.50575818,2603.8,2603.4,2.69]
[1727283304857,1.50575818,2603.9,2603.6,2.69]
[1727283305160,0.38404,2603.7,2603.6,2.69]
[1727283305450,0.38404,2603.8,2603.5,0.38407]
[1727283305661,0.38405,2603.7,2603.4,3.07408]
[1727283305846,0.38406,2603.6,2603.4,2.69]
[1727283306050,0.3918,2603.7,2603.4,2.69]
[1727283306249,0.77585,2603.7,2603.4,3.07409]
[1727283306551,0.3918,2603.7,2603.5,0.38407]
[1727283306752,0.38407,2603.6,2603.4,2.69]
[1727283307659,3.5996,2603.7,2603.4,2.69]
[1727283307862,0.38407,2603.6,2603.4,2.69]
[1727283308155,3.98366,2603.7,2603.4,3.07408]
[1727283308552,0.38407,2603.6,2603.4,2.69]
[1727283309158,3.98365,2603.7,2603.4,3.07408]
[1727283309360,3.98365,2603.7,2603.5,0.3663]
[1727283309762,0.77585,2603.7,2603.5,0.3663]
[1727283310464,0.38406,2603.6,2603.5,0.3663]
[1727283312457,3.5996,2603.7,2603.5,0.75037]